{"text_format":"3","workbook":"xlsx","n_sheets":5,"sheets":["Социально-коммуник","Познавательное развитие","Речевое развитие","Худ-эстетич","Физ развитие"],"read":"whole","date_system":"1900"}

{"sheet":"Социально-коммуник","index":0,"n_rows":99,"n_cols":14,"rows_kept":99,"merged":[[4,1,5,1],[4,2,5,2],[4,3,4,10],[7,1,8,1],[9,1,10,1],[11,1,12,1],[13,1,14,1],[15,1,16,1],[17,1,18,1],[19,1,20,1],[21,1,22,1],[23,1,24,1],[25,1,26,1],[27,1,28,1],[29,1,30,1],[31,1,32,1],[33,1,34,1],[35,1,36,1],[37,1,38,1],[39,1,40,1],[41,1,42,1],[43,1,44,1],[45,1,46,1],[47,1,48,1],[49,1,50,1],[51,1,52,1],[53,1,54,1],[55,1,56,1],[57,1,58,1],[59,1,60,1],[61,1,62,1],[63,1,64,1],[65,1,66,1],[67,1,68,1],[70,1,71,1],[72,1,73,1],[74,1,75,1],[83,1,84,1],[83,2,84,2],[83,3,83,5],[85,1,86,1],[87,1,88,1],[89,1,90,1],[91,1,92,1],[93,1,94,1],[95,1,96,1],[97,1,98,1]]}
["КАРТА ОЦЕНКИ УРОВНЕЙ ЭФФЕКТИВНОСТИ ПЕДАГОГИЧЕСКИХ ВОЗДЕЙСТВИЙ (по Афонькиной Ю.А. и Верещагиной Н.В.)"]
["Образовательная область «Социально-коммуникативное развитие»",{"$nulls":12},"Дата заполнения:"]
["Возрастная группа                1 средняя",{"$nulls":5},"Воспитатели:",{"$nulls":6},"Начало учебного года"]
[{"$nulls":13},"Конец учебного года"]
[null,"Ф. И. ребенка","Период","Критерии оценки уровней эффективности педагогических воздействий"]
[{"$nulls":3},"Старается соблюдать правила поведения в общественных местах, в общении со взрослыми и сверстниками, в природе","Понимает социальную оценку поступков сверстников или героев иллюстраций, литературных произведений, эмоционально откликается","Понимает значение слов, обозначающих эмоциональное состояние, этические качества, эстетические характеристики","Имеет представления о мужских и женских профессиях","Проявляет интерес к кукольному театру, выбирает предпочитаемых героев, может поддерживать ролевые диалоги","Готовит к занятиям свое рабочее место, убирает материалы по окончании работы","Принимает роль в игре со сверстниками, проявляет инициативу в игре, может объяснить сверстнику правило игры","Итоговый показатель по каждому ребенку (среднее значение)"]
[null,1,2,3,4,5,6,7,8,9,10]
[null,1,"Начало уч. г.",1,1,2,3,3,2,2,{"$f":"SUM(D8:J8)/7","v":2}]
[null,null,"Конец уч. г.",{"$nulls":7},{"$f":"SUM(D9:J9)/7","v":0}]
[null,2,"Начало уч. г.",{"$nulls":7},0]
[null,null,"Конец уч. г.",{"$nulls":7},0]
[null,3,"Начало уч. г.",{"$nulls":7},0]
[null,null,"Конец уч. г.",{"$nulls":7},0]
[null,4,"Начало уч. г.",{"$nulls":7},0]
[null,null,"Конец уч. г.",{"$nulls":7},0]
[null,5,"Начало уч. г.",{"$nulls":7},0]
[null,null,"Конец уч. г.",{"$nulls":7},0]
[null,6,"Начало уч. г.",{"$nulls":7},0]
[null,null,"Конец уч. г.",{"$nulls":7},0]
[null,7,"Начало уч. г.",{"$nulls":7},0]
[null,null,"Конец уч. г.",{"$nulls":7},0]
[null,8,"Начало уч. г.",{"$nulls":7},0]
[null,null,"Конец уч. г.",{"$nulls":7},0]
[null,9,"Начало уч. г.",{"$nulls":7},0]
[null,null,"Конец уч. г.",{"$nulls":7},0]
[null,10,"Начало уч. г.",{"$nulls":7},0]
[null,null,"Конец уч. г.",{"$nulls":7},0]
[null,11,"Начало уч. г.",{"$nulls":7},0]
[null,null,"Конец уч. г.",{"$nulls":7},0]
[null,12,"Начало уч. г.",{"$nulls":7},0]
[null,null,"Конец уч. г.",{"$nulls":7},0]
[null,13,"Начало уч. г.",{"$nulls":7},0]
[null,null,"Конец уч. г.",{"$nulls":7},0]
[null,14,"Начало уч. г.",{"$nulls":7},0]
[null,null,"Конец уч. г.",{"$nulls":7},0]
[null,15,"Начало уч. г.",{"$nulls":7},0]
[null,null,"Конец уч. г.",{"$nulls":7},0]
[null,16,"Начало уч. г.",{"$nulls":7},0]
[null,null,"Конец уч. г.",{"$nulls":7},0]
[null,17,"Начало уч. г.",{"$nulls":7},0]
[null,null,"Конец уч. г.",{"$nulls":7},0]
[null,18,"Начало уч. г.",{"$nulls":7},0]
[null,null,"Конец уч. г.",{"$nulls":7},0]
[null,19,"Начало уч. г.",{"$nulls":7},0]
[null,null,"Конец уч. г.",{"$nulls":7},0]
[null,20,"Начало уч. г.",{"$nulls":7},0]
[null,null,"Конец уч. г.",{"$nulls":7},0]
[null,21,"Начало уч. г.",{"$nulls":7},0]
[null,null,"Конец уч. г.",{"$nulls":7},0]
[null,22,"Начало уч. г.",{"$nulls":7},0]
[null,null,"Конец уч. г.",{"$nulls":7},0]
[null,23,"Начало уч. г.",{"$nulls":7},0]
[null,null,"Конец уч. г.",{"$nulls":7},0]
[null,24,"Начало уч. г.",{"$nulls":7},0]
[null,null,"Конец уч. г.",{"$nulls":7},0]
[null,25,"Начало уч. г.",{"$nulls":7},0]
[null,null,"Конец уч. г.",{"$nulls":7},0]
[null,26,"Начало уч. г.",{"$nulls":7},0]
[null,null,"Конец уч. г.",{"$nulls":7},0]
[null,27,"Начало уч. г.",{"$nulls":7},0]
[null,null,"Конец уч. г.",{"$nulls":7},0]
[null,28,"Начало уч. г.",{"$nulls":7},0]
[null,null,"Конец уч. г.",{"$nulls":7},0]
[null,29,"Начало уч. г.",{"$nulls":7},0]
[null,null,"Конец уч. г.",{"$nulls":7},0]
[null,30,"Начало уч. г.",{"$nulls":7},0]
[null,null,"Конец уч. г.",{"$nulls":7},0]
[null,31,"Начало уч. г.",{"$nulls":7},0]
[null,null,"Конец уч. г.",{"$nulls":7},0]
[]
[null,"Высокий","Начало уч. г.",{"$f":"(В*100)/31","v":{"$error":"#NAME?"}},{"$f":"(В*100)/31","v":{"$error":"#NAME?"}},{"$error":"#NAME?"},{"$error":"#NAME?"},{"$error":"#NAME?"},{"$error":"#NAME?"},{"$error":"#NAME?"},null,null,"В - количество высоких баллов"]
[null,null,"Конец уч. г.",{"$f":"(B*100)/31","v":{"$error":"#NAME?"}},{"$error":"#NAME?"},{"$error":"#NAME?"},{"$error":"#NAME?"},{"$error":"#NAME?"},{"$error":"#NAME?"},{"$error":"#NAME?"}]
[null,"Средний","Начало уч. г.",{"$f":"(С*100)/31","v":{"$error":"#NAME?"}},{"$f":"(С*100)/31","v":{"$error":"#NAME?"}},{"$error":"#NAME?"},{"$error":"#NAME?"},{"$error":"#NAME?"},{"$error":"#NAME?"},{"$error":"#NAME?"},null,null,"С - количество средних баллов"]
[null,null,"Конец уч. г.",{"$f":"(С*100)/31","v":{"$error":"#NAME?"}},{"$error":"#NAME?"},{"$error":"#NAME?"},{"$error":"#NAME?"},{"$error":"#NAME?"},{"$error":"#NAME?"},{"$error":"#NAME?"}]
[null,"Низкий","Начало уч. г.",{"$f":"(Н*100)/31","v":{"$error":"#NAME?"}},{"$f":"(Н*100)/31","v":{"$error":"#NAME?"}},{"$error":"#NAME?"},{"$error":"#NAME?"},{"$error":"#NAME?"},{"$error":"#NAME?"},{"$error":"#NAME?"},null,null,"Н - количество низких баллов"]
[null,null,"Конец уч. г.",{"$f":"(Н*100)/31","v":{"$error":"#NAME?"}},{"$error":"#NAME?"},{"$error":"#NAME?"},{"$error":"#NAME?"},{"$error":"#NAME?"},{"$error":"#NAME?"},{"$error":"#NAME?"}]
[]
[{"$nulls":3},"Высокий 3 балла",null,null,"Процент считаем так: количество детей (допустим) с низким уровнем 6*100/25(количество детей в группе)=24%"]
[{"$nulls":3},"Средний 2 балла"]
[{"$nulls":3},"Низкий 1 балл"]
[]
[null,"СВОДНАЯ ТАБЛИЦА ОЦЕНКИ УРОВНЕЙ ЭФФЕКТИВНОСТИ ПЕДАГОГИЧЕСКИХ ВОЗДЕЙСТВИЙ "]
[null,"Образовательная область «Социально-коммуникативное развитие»"]
[null,"Направления","Период","Уровни (%)"]
[{"$nulls":3},"высокий","средний","низкий"]
[null,"Старается соблюдать правила поведения в общественных местах, в общении со взрослыми и сверстниками, в природе","Начало уч. г."]
[null,null,"Конец уч. г."]
[null,"Понимает социальную оценку поступков сверстников или героев иллюстраций, литературных произведений, эмоционально откликается","Начало уч. г."]
[null,null,"Конец уч. г."]
[null,"Понимает значение слов, обозначающих эмоциональное состояние, этические качества, эстетические характеристики","Начало уч. г."]
[null,null,"Конец уч. г."]
[null,"Имеет представления о мужских и женских профессиях","Начало уч. г."]
[null,null,"Конец уч. г."]
[null,"Проявляет интерес к кукольному театру, выбирает предпочитаемых героев, может поддерживать ролевые диалоги","Начало уч. г."]
[null,null,"Конец уч. г."]
[null,"Готовит к занятиям свое рабочее место, убирает материалы по окончании работы","Начало уч.г."]
[null,null,"Конец уч.г."]
[null,"Принимает роль в игре со сверстниками, проявляет инициативу в игре, может объяснить сверстнику правило игры","Начало уч.г."]
[null,null,"Конец уч.г."]

{"sheet":"Познавательное развитие","index":1,"n_rows":106,"n_cols":13,"rows_kept":106,"merged":[[6,1,7,1],[6,2,7,2],[6,3,6,12],[9,1,10,1],[11,1,12,1],[13,1,14,1],[15,1,16,1],[17,1,18,1],[19,1,20,1],[21,1,22,1],[23,1,24,1],[25,1,26,1],[27,1,28,1],[29,1,30,1],[31,1,32,1],[33,1,34,1],[35,1,36,1],[37,1,38,1],[39,1,40,1],[41,1,42,1],[43,1,44,1],[45,1,46,1],[47,1,48,1],[49,1,50,1],[51,1,52,1],[53,1,54,1],[55,1,56,1],[57,1,58,1],[59,1,60,1],[61,1,62,1],[63,1,64,1],[65,1,66,1],[67,1,68,1],[69,1,70,1],[72,1,73,1],[74,1,75,1],[76,1,77,1],[84,1,85,1],[84,2,85,2],[84,3,84,5],[86,1,87,1],[88,1,89,1],[90,1,91,1],[92,1,93,1],[94,1,95,1],[96,1,97,1],[98,1,99,1],[100,1,103,1],[101,2,103,2],[101,3,103,3],[101,4,103,4],[101,5,103,5],[104,1,105,1]]}
["КАРТА ОЦЕНКИ УРОВНЕЙ ЭФФЕКТИВНОСТИ ПЕДАГОГИЧЕСКИХ ВОЗДЕЙСТВИЙ (по Афонькиной Ю.А. и Верещагиной Н.В.)"]
["Образовательная область «Познавательное рзвитие»",{"$nulls":10},"Дата заполнения:"]
["Возрастная группа                1 старшая",{"$nulls":6},"Воспитатели:",{"$nulls":3},"Начало учебного года"]
[{"$nulls":11},"Конец учебного года"]
[]
[]
[null,"Ф. И. ребенка","Период","Критерии оценки уровней эффективности педагогических воздействий"]
[{"$nulls":3},"Знает свои имя и фамилию, адрес проживания, имена родителей","Рассматривает иллюстрированные издания детских книг, проявляет интерес к ним","Знает о значении солнца, воздуха, воды для человека","Ориентируется в пространстве (на себе, на другом человеке, от предмета, на плоскости)","Называет диких и домашних животных, одежду, обувь, мебель, посуду, деревья","Сравнивает количество предметов в группах до 5 на основе счета, приложением, наложением","Различает круг, квадрат, треугольник, прямоугольник","Умеет группировать предметы по цвету, размеру, форме, назначению","Понимает смыслслов «утро», «вечер», «день», «ночь», определяет части суток, называет времена года, их признаки, последовательность","Итоговый показатель по каждому ребенку (среднее значение)"]
[null,1,2,3,4,5,6,7,8,9,10,11,14]
[null,1,"Начало уч. г.",3,1,2,3,3,2,1,2,3,{"$f":"SUM(D10:L10)/9","v":{"v":2.2222222222222223,"d":"2"}}]
[null,null,"Конец уч. г.",{"$nulls":9},{"$f":"SUM(D11:L11)/9","v":0}]
[null,2,"Начало уч. г.",{"$nulls":9},0]
[null,null,"Конец уч. г.",{"$nulls":9},0]
[null,3,"Начало уч. г.",{"$nulls":9},0]
[null,null,"Конец уч. г.",{"$nulls":9},0]
[null,4,"Начало уч. г.",{"$nulls":9},0]
[null,null,"Конец уч. г.",{"$nulls":9},0]
[null,5,"Начало уч. г.",{"$nulls":9},0]
[null,null,"Конец уч. г.",{"$nulls":9},0]
[null,6,"Начало уч. г.",{"$nulls":9},0]
[null,null,"Конец уч. г.",{"$nulls":9},0]
[null,7,"Начало уч. г.",{"$nulls":9},0]
[null,null,"Конец уч. г.",{"$nulls":9},0]
[null,8,"Начало уч. г.",{"$nulls":9},0]
[null,null,"Конец уч. г.",{"$nulls":9},0]
[null,9,"Начало уч. г.",{"$nulls":9},0]
[null,null,"Конец уч. г.",{"$nulls":9},0]
[null,10,"Начало уч. г.",{"$nulls":9},0]
[null,null,"Конец уч. г.",{"$nulls":9},0]
[null,11,"Начало уч. г.",{"$nulls":9},0]
[null,null,"Конец уч. г.",{"$nulls":9},0]
[null,12,"Начало уч. г.",{"$nulls":9},0]
[null,null,"Конец уч. г.",{"$nulls":9},0]
[null,13,"Начало уч. г.",{"$nulls":9},0]
[null,null,"Конец уч. г.",{"$nulls":9},0]
[null,14,"Начало уч. г.",{"$nulls":9},0]
[null,null,"Конец уч. г.",{"$nulls":9},0]
[null,15,"Начало уч. г.",{"$nulls":9},0]
[null,null,"Конец уч. г.",{"$nulls":9},0]
[null,16,"Начало уч. г.",{"$nulls":9},0]
[null,null,"Конец уч. г.",{"$nulls":9},0]
[null,17,"Начало уч. г.",{"$nulls":9},0]
[null,null,"Конец уч. г.",{"$nulls":9},0]
[null,18,"Начало уч. г.",{"$nulls":9},0]
[null,null,"Конец уч. г.",{"$nulls":9},0]
[null,19,"Начало уч. г.",{"$nulls":9},0]
[null,null,"Конец уч. г.",{"$nulls":9},0]
[null,20,"Начало уч. г.",{"$nulls":9},0]
[null,null,"Конец уч. г.",{"$nulls":9},0]
[null,21,"Начало уч. г.",{"$nulls":9},0]
[null,null,"Конец уч. г.",{"$nulls":9},0]
[null,22,"Начало уч. г.",{"$nulls":9},0]
[null,null,"Конец уч. г.",{"$nulls":9},0]
[null,23,"Начало уч. г.",{"$nulls":9},0]
[null,null,"Конец уч. г.",{"$nulls":9},0]
[null,24,"Начало уч. г.",{"$nulls":9},0]
[null,null,"Конец уч. г.",{"$nulls":9},0]
[null,25,"Начало уч. г.",{"$nulls":9},0]
[null,null,"Конец уч. г.",{"$nulls":9},0]
[null,26,"Начало уч. г.",{"$nulls":9},0]
[null,null,"Конец уч. г.",{"$nulls":9},0]
[null,27,"Начало уч. г.",{"$nulls":9},0]
[null,null,"Конец уч. г.",{"$nulls":9},0]
[null,28,"Начало уч. г.",{"$nulls":9},0]
[null,null,"Конец уч. г.",{"$nulls":9},0]
[null,29,"Начало уч. г.",{"$nulls":9},0]
[null,null,"Конец уч. г.",{"$nulls":9},0]
[null,30,"Начало уч. г.",{"$nulls":9},0]
[null,null,"Конец уч. г.",{"$nulls":9},0]
[null,31,"Начало уч. г.",{"$nulls":9},{"$f":"SUM(D70:L70)/9","v":0}]
[null,null,"Конец уч. г.",{"$nulls":9},0]
[]
[null,"Высокий","Начало уч. г.",{"$f":"(В*100)/31","v":{"$error":"#NAME?"}},{"$f":"(В*100)/31","v":{"$error":"#NAME?"}},{"$error":"#NAME?"},{"$error":"#NAME?"},{"$error":"#NAME?"},{"$error":"#NAME?"},{"$error":"#NAME?"},{"$error":"#NAME?"},{"$error":"#NAME?"}]
[null,null,"Конец уч. г.",{"$f":"(B*100)/31","v":{"$error":"#NAME?"}},{"$error":"#NAME?"},{"$error":"#NAME?"},{"$error":"#NAME?"},{"$error":"#NAME?"},{"$error":"#NAME?"},{"$error":"#NAME?"},{"$error":"#NAME?"},{"$error":"#NAME?"}]
[null,"Средний","Начало уч. г.",{"$f":"(С*100)/31","v":{"$error":"#NAME?"}},{"$f":"(С*100)/31","v":{"$error":"#NAME?"}},{"$error":"#NAME?"},{"$error":"#NAME?"},{"$error":"#NAME?"},{"$error":"#NAME?"},{"$error":"#NAME?"},{"$error":"#NAME?"},{"$error":"#NAME?"}]
[null,null,"Конец уч. г.",{"$f":"(С*100)/31","v":{"$error":"#NAME?"}},{"$error":"#NAME?"},{"$error":"#NAME?"},{"$error":"#NAME?"},{"$error":"#NAME?"},{"$error":"#NAME?"},{"$error":"#NAME?"},{"$error":"#NAME?"},{"$error":"#NAME?"}]
[null,"Низкий","Начало уч. г.",{"$f":"(Н*100)/31","v":{"$error":"#NAME?"}},{"$f":"(Н*100)/31","v":{"$error":"#NAME?"}},{"$error":"#NAME?"},{"$error":"#NAME?"},{"$error":"#NAME?"},{"$error":"#NAME?"},{"$error":"#NAME?"},{"$error":"#NAME?"},{"$error":"#NAME?"}]
[null,null,"Конец уч. г.",{"$f":"(Н*100)/31","v":{"$error":"#NAME?"}},{"$error":"#NAME?"},{"$error":"#NAME?"},{"$error":"#NAME?"},{"$error":"#NAME?"},{"$error":"#NAME?"},{"$error":"#NAME?"},{"$error":"#NAME?"},{"$error":"#NAME?"}]
[]
[{"$nulls":3},"Высокий 3 балла",null,null,"Процент считаем так: количество детей (допустим) с низким уровнем 6*100/25(количество детей в группе)=24%"]
[{"$nulls":3},"Средний 2 балла"]
[{"$nulls":3},"Низкий 1 балл"]
[null,"СВОДНАЯ ТАБЛИЦА ОЦЕНКИ УРОВНЕЙ ЭФФЕКТИВНОСТИ ПЕДАГОГИЧЕСКИХ ВОЗДЕЙСТВИЙ "]
[null,"Образовательная область «Познавательное развитие»"]
[null,"Направления","Период","Уровни (%)"]
[{"$nulls":3},"высокий","средний","низкий"]
[null,"Знает свои имя и фамилию, адрес проживания, имена родителей","Начало уч. г."]
[null,null,"Конец уч. г."]
[null,"Рассматривает иллюстрированные издания детских книг, проявляет интерес к ним","Начало уч. г."]
[null,null,"Конец уч. г."]
[null,"Знает о значении солнца, воздуха, воды для человека","Начало уч. г."]
[null,null,"Конец уч. г."]
[null,"Ориентируется в пространстве (на себе, на другом человеке, от предмета, на плоскости)","Начало уч. г."]
[null,null,"Конец уч. г."]
[null,"Называет диких и домашних животных, одежду, обувь, мебель, посуду, деревья","Начало уч. г."]
[null,null,"Конец уч. г."]
[null,"Сравнивает количество предметов в группах до 5 на основе счета, приложением, наложением","Начало уч. г."]
[null,null,"Конец уч. г."]
[null,"Различает круг, квадрат, треугольник, прямоугольник","Начало уч. г."]
[null,null,"Конец уч. г."]
[null,"Умеет группировать предметы по цвету, размеру, форме, назначению","Начало уч. г."]
[null,null,"Конец уч. г."]
[]
[]
[null,"Понимает смыслслов «утро», «вечер», «день», «ночь», определяет части суток, называет времена года, их признаки, последовательность","Начало уч.г."]
[null,null,"Конец уч.г."]

{"sheet":"Речевое развитие","index":2,"n_rows":92,"n_cols":11,"rows_kept":92,"merged":[[4,1,5,1],[4,2,5,2],[4,3,4,7],[7,1,8,1],[9,1,10,1],[11,1,12,1],[13,1,14,1],[15,1,16,1],[17,1,18,1],[19,1,20,1],[21,1,22,1],[23,1,24,1],[25,1,26,1],[27,1,28,1],[29,1,30,1],[31,1,32,1],[33,1,34,1],[35,1,36,1],[37,1,38,1],[39,1,40,1],[41,1,42,1],[43,1,44,1],[45,1,46,1],[47,1,48,1],[49,1,50,1],[51,1,52,1],[53,1,54,1],[55,1,56,1],[57,1,58,1],[59,1,60,1],[61,1,62,1],[63,1,64,1],[65,1,66,1],[67,1,68,1],[70,1,71,1],[72,1,73,1],[74,1,75,1],[82,1,83,1],[82,2,83,2],[82,3,82,5],[84,1,85,1],[86,1,87,1],[88,1,89,1],[90,1,91,1]]}
["КАРТА ОЦЕНКИ УРОВНЕЙ ЭФФЕКТИВНОСТИ ПЕДАГОГИЧЕСКИХ ВОЗДЕЙСТВИЙ (по Афонькиной Ю.А. и Верещагиной Н.В.)"]
["Образовательная область \"Речевое развитие\"",{"$nulls":9},"Дата заполнения:"]
["Возрастная группа                1 старшая",{"$nulls":5},"Воспитатели:",{"$nulls":3},"Начало учебного года"]
[{"$nulls":10},"Конец учебного года"]
[null,"Ф. И. ребенка","Период","Критерии оценки уровней эффективности педагогических воздействий"]
[{"$nulls":3},"Рассказывает о содержании сюжетной картинки, в том числе по опорной схеме (мнемотаблицы). Может повторить описания игрушки","Имеет предпочтение в литературных произведениях. Проявляет эмоциональную заинтересованность в драматизации знакомых сказок. Может пересказать сюжет литературного произведения, заучить стихотворение наизусть","Определяет первый звук в слове. Умеет образовывать новые слова по аналогии со знакомыми словами","Поддерживает беседу, использует все части речи. Понимает и употребляет слова-антонимы","Итоговый показатель по каждому ребенку (среднее значение)"]
[null,1,2,3,4,5,6,11]
[null,1,"Начало уч. г.",3,1,2,3,{"$f":"SUM(D8:G8)/4","v":{"v":2.25,"d":"2"}}]
[null,null,"Конец уч. г.",{"$nulls":4},{"$f":"SUM(D9:G9)/4","v":0}]
[null,2,"Начало уч. г.",{"$nulls":4},0]
[null,null,"Конец уч. г.",{"$nulls":4},0]
[null,3,"Начало уч. г.",{"$nulls":4},0]
[null,null,"Конец уч. г.",{"$nulls":4},0]
[null,4,"Начало уч. г.",{"$nulls":4},0]
[null,null,"Конец уч. г.",{"$nulls":4},0]
[null,5,"Начало уч. г.",{"$nulls":4},0]
[null,null,"Конец уч. г.",{"$nulls":4},0]
[null,6,"Начало уч. г.",{"$nulls":4},0]
[null,null,"Конец уч. г.",{"$nulls":4},0]
[null,7,"Начало уч. г.",{"$nulls":4},0]
[null,null,"Конец уч. г.",{"$nulls":4},0]
[null,8,"Начало уч. г.",{"$nulls":4},0]
[null,null,"Конец уч. г.",{"$nulls":4},0]
[null,9,"Начало уч. г.",{"$nulls":4},0]
[null,null,"Конец уч. г.",{"$nulls":4},0]
[null,10,"Начало уч. г.",{"$nulls":4},0]
[null,null,"Конец уч. г.",{"$nulls":4},0]
[null,11,"Начало уч. г.",{"$nulls":4},0]
[null,null,"Конец уч. г.",{"$nulls":4},0]
[null,12,"Начало уч. г.",{"$nulls":4},0]
[null,null,"Конец уч. г.",{"$nulls":4},0]
[null,13,"Начало уч. г.",{"$nulls":4},0]
[null,null,"Конец уч. г.",{"$nulls":4},0]
[null,14,"Начало уч. г.",{"$nulls":4},0]
[null,null,"Конец уч. г.",{"$nulls":4},0]
[null,15,"Начало уч. г.",{"$nulls":4},0]
[null,null,"Конец уч. г.",{"$nulls":4},0]
[null,16,"Начало уч. г.",{"$nulls":4},0]
[null,null,"Конец уч. г.",{"$nulls":4},0]
[null,17,"Начало уч. г.",{"$nulls":4},0]
[null,null,"Конец уч. г.",{"$nulls":4},0]
[null,18,"Начало уч. г.",{"$nulls":4},0]
[null,null,"Конец уч. г.",{"$nulls":4},0]
[null,19,"Начало уч. г.",{"$nulls":4},0]
[null,null,"Конец уч. г.",{"$nulls":4},0]
[null,20,"Начало уч. г.",{"$nulls":4},0]
[null,null,"Конец уч. г.",{"$nulls":4},0]
[null,21,"Начало уч. г.",{"$nulls":4},0]
[null,null,"Конец уч. г.",{"$nulls":4},0]
[null,22,"Начало уч. г.",{"$nulls":4},0]
[null,null,"Конец уч. г.",{"$nulls":4},0]
[null,23,"Начало уч. г.",{"$nulls":4},0]
[null,null,"Конец уч. г.",{"$nulls":4},0]
[null,24,"Начало уч. г.",{"$nulls":4},0]
[null,null,"Конец уч. г.",{"$nulls":4},0]
[null,25,"Начало уч. г.",{"$nulls":4},0]
[null,null,"Конец уч. г.",{"$nulls":4},0]
[null,26,"Начало уч. г.",{"$nulls":4},0]
[null,null,"Конец уч. г.",{"$nulls":4},0]
[null,27,"Начало уч. г.",{"$nulls":4},0]
[null,null,"Конец уч. г.",{"$nulls":4},0]
[null,28,"Начало уч. г.",{"$nulls":4},0]
[null,null,"Конец уч. г.",{"$nulls":4},0]
[null,29,"Начало уч. г.",{"$nulls":4},0]
[null,null,"Конец уч. г.",{"$nulls":4},0]
[null,30,"Начало уч. г.",{"$nulls":4},0]
[null,null,"Конец уч. г.",{"$nulls":4},0]
[null,31,"Начало уч. г.",{"$nulls":4},0]
[null,null,"Конец уч. г.",{"$nulls":4},0]
[]
[null,"Высокий","Начало уч. г.",{"$f":"(В*100)/31","v":{"$error":"#NAME?"}},{"$f":"(В*100)/31","v":{"$error":"#NAME?"}},{"$error":"#NAME?"},{"$error":"#NAME?"},null,null,"В - количество высоких баллов"]
[null,null,"Конец уч. г.",{"$f":"(B*100)/31","v":{"$error":"#NAME?"}},{"$error":"#NAME?"},{"$error":"#NAME?"},{"$error":"#NAME?"}]
[null,"Средний","Начало уч. г.",{"$f":"(С*100)/31","v":{"$error":"#NAME?"}},{"$f":"(С*100)/31","v":{"$error":"#NAME?"}},{"$error":"#NAME?"},{"$error":"#NAME?"},null,null,"С - количество средних баллов"]
[null,null,"Конец уч. г.",{"$f":"(С*100)/31","v":{"$error":"#NAME?"}},{"$error":"#NAME?"},{"$error":"#NAME?"},{"$error":"#NAME?"}]
[null,"Низкий","Начало уч. г.",{"$f":"(Н*100)/31","v":{"$error":"#NAME?"}},{"$f":"(Н*100)/31","v":{"$error":"#NAME?"}},{"$error":"#NAME?"},{"$error":"#NAME?"},null,null,"Н - количество низких баллов"]
[null,null,"Конец уч. г.",{"$f":"(Н*100)/31","v":{"$error":"#NAME?"}},{"$error":"#NAME?"},{"$error":"#NAME?"},{"$error":"#NAME?"}]
[]
[{"$nulls":3},"Высокий 3 балла",null,null,"Процент считаем так: количество детей (допустим) с низким уровнем 6*100/25(количество детей в группе)=24%"]
[{"$nulls":3},"Средний 2 балла"]
[{"$nulls":3},"Низкий 1 балл"]
[null,"СВОДНАЯ ТАБЛИЦА ОЦЕНКИ УРОВНЕЙ ЭФФЕКТИВНОСТИ ПЕДАГОГИЧЕСКИХ ВОЗДЕЙСТВИЙ "]
[null,"Образовательная область «Речевое развитие»"]
[null,"Направления","Период","Уровни (%)"]
[{"$nulls":3},"высокий","средний","низкий"]
[null,"Рассказывает о содержании сюжетной картинки, в том числе по опорной схеме (мнемотаблицы). Может повторить описания игрушки","Начало уч. г."]
[null,null,"Конец уч. г."]
[null,"Имеет предпочтение в литературных произведениях. Проявляет эмоциональную заинтересованность в драматизации знакомых сказок. Может пересказать сюжет литературного произведения, заучить стихотворение наизусть","Начало уч. г."]
[null,null,"Конец уч. г."]
[null,"Определяет первый звук в слове. Умеет образовывать новые слова по аналогии со знакомыми словами","Начало уч. г."]
[null,null,"Конец уч. г."]
[null,"Поддерживает беседу, использует все части речи. Понимает и употребляет слова-антонимы","Начало уч. г."]
[null,null,"Конец уч. г."]

{"sheet":"Худ-эстетич","index":3,"n_rows":98,"n_cols":13,"rows_kept":98,"merged":[[4,1,5,1],[4,2,5,2],[4,3,4,10],[7,1,8,1],[9,1,10,1],[11,1,12,1],[13,1,14,1],[15,1,16,1],[17,1,18,1],[19,1,20,1],[21,1,22,1],[23,1,24,1],[25,1,26,1],[27,1,28,1],[29,1,30,1],[31,1,32,1],[33,1,34,1],[35,1,36,1],[37,1,38,1],[39,1,40,1],[41,1,42,1],[43,1,44,1],[45,1,46,1],[47,1,48,1],[49,1,50,1],[51,1,52,1],[53,1,54,1],[55,1,56,1],[57,1,58,1],[59,1,60,1],[61,1,62,1],[63,1,64,1],[65,1,66,1],[67,1,68,1],[70,1,71,1],[72,1,73,1],[74,1,75,1],[82,1,83,1],[82,2,83,2],[82,3,82,5],[84,1,85,1],[86,1,87,1],[88,1,89,1],[90,1,91,1],[92,1,93,1],[94,1,95,1],[96,1,97,1]]}
["КАРТА ОЦЕНКИ УРОВНЕЙ ЭФФЕКТИВНОСТИ ПЕДАГОГИЧЕСКИХ ВОЗДЕЙСТВИЙ (по Афонькиной Ю.А. и Верещагиной Н.В.)"]
["Образовательная область «Художественно-эстетическое развитие»",{"$nulls":10},"Дата заполнения:"]
["Возрастная группа                1 старшая",{"$nulls":5},"Воспитатели:",{"$nulls":4},"Начало учебного года"]
[{"$nulls":11},"Конец учебного года"]
[null,"Ф. И. ребенка","Период","Критерии оценки уровней эффективности педагогических воздействий"]
[{"$nulls":3},"Способен преобразовывать постройки в соответствии с заданием взрослого, проявляет интерес к конструктивной деятельности, в том числе к поделкам из бумаги","Правильно держит ножницы и умеет резать ими по прямой, по диагонали (квадрат и прямоугольник); вырезать круг из квадрата, овал-из прямоугольника, плавно срезать и закруглять углы","Изображает предметы путем создания отчетливых форм, подбора цвета, аккуратного закрашивания, приклеивания, использования разных материалов. Объединяет предметы в сюжеты","Знаком с элементами некоторых видов народного прикладного творчества, может использовать их в своей творческой деятельности","Имеет предпочтение в выборе муз. Произведения для слушания и пения. Выполняет движения, отвечающие характеру музыки, самостоятельно меняя их в соответствии с двухчастной формой музыкального произведения","Умеет выполнять танцевальные движения: пружинка, подскоки, движение парами по кругу, кружение по одному и в парах. Может выполнять движения с предметами","Узнает песни по мелодии. Может петь протяжно, четко произносить слова; вместе с другими детьми-начинать и заканчивать пение","Итоговый показатель по каждому ребенку (среднее значение)"]
[null,1,2,3,4,5,6,7,8,9,10]
[null,1,"Начало уч. г.",3,1,2,3,3,2,2,{"$f":"SUM(D8:J8)/7","v":{"v":2.2857142857142856,"d":"2"}}]
[null,null,"Конец уч. г.",{"$nulls":7},{"$f":"SUM(D9:J9)/7","v":0}]
[null,2,"Начало уч. г.",{"$nulls":7},0]
[null,null,"Конец уч. г.",{"$nulls":7},0]
[null,3,"Начало уч. г.",{"$nulls":7},0]
[null,null,"Конец уч. г.",{"$nulls":7},0]
[null,4,"Начало уч. г.",{"$nulls":7},0]
[null,null,"Конец уч. г.",{"$nulls":7},0]
[null,5,"Начало уч. г.",{"$nulls":7},0]
[null,null,"Конец уч. г.",{"$nulls":7},0]
[null,6,"Начало уч. г.",{"$nulls":7},0]
[null,null,"Конец уч. г.",{"$nulls":7},0]
[null,7,"Начало уч. г.",{"$nulls":7},0]
[null,null,"Конец уч. г.",{"$nulls":7},0]
[null,8,"Начало уч. г.",{"$nulls":7},0]
[null,null,"Конец уч. г.",{"$nulls":7},0]
[null,9,"Начало уч. г.",{"$nulls":7},0]
[null,null,"Конец уч. г.",{"$nulls":7},0]
[null,10,"Начало уч. г.",{"$nulls":7},0]
[null,null,"Конец уч. г.",{"$nulls":7},0]
[null,11,"Начало уч. г.",{"$nulls":7},0]
[null,null,"Конец уч. г.",{"$nulls":7},0]
[null,12,"Начало уч. г.",{"$nulls":7},0]
[null,null,"Конец уч. г.",{"$nulls":7},0]
[null,13,"Начало уч. г.",{"$nulls":7},0]
[null,null,"Конец уч. г.",{"$nulls":7},0]
[null,14,"Начало уч. г.",{"$nulls":7},0]
[null,null,"Конец уч. г.",{"$nulls":7},0]
[null,15,"Начало уч. г.",{"$nulls":7},0]
[null,null,"Конец уч. г.",{"$nulls":7},0]
[null,16,"Начало уч. г.",{"$nulls":7},0]
[null,null,"Конец уч. г.",{"$nulls":7},0]
[null,17,"Начало уч. г.",{"$nulls":7},0]
[null,null,"Конец уч. г.",{"$nulls":7},0]
[null,18,"Начало уч. г.",{"$nulls":7},0]
[null,null,"Конец уч. г.",{"$nulls":7},0]
[null,19,"Начало уч. г.",{"$nulls":7},0]
[null,null,"Конец уч. г.",{"$nulls":7},0]
[null,20,"Начало уч. г.",{"$nulls":7},0]
[null,null,"Конец уч. г.",{"$nulls":7},0]
[null,21,"Начало уч. г.",{"$nulls":7},0]
[null,null,"Конец уч. г.",{"$nulls":7},0]
[null,22,"Начало уч. г.",{"$nulls":7},0]
[null,null,"Конец уч. г.",{"$nulls":7},0]
[null,23,"Начало уч. г.",{"$nulls":7},0]
[null,null,"Конец уч. г.",{"$nulls":7},0]
[null,24,"Начало уч. г.",{"$nulls":7},0]
[null,null,"Конец уч. г.",{"$nulls":7},0]
[null,25,"Начало уч. г.",{"$nulls":7},0]
[null,null,"Конец уч. г.",{"$nulls":7},0]
[null,26,"Начало уч. г.",{"$nulls":7},0]
[null,null,"Конец уч. г.",{"$nulls":7},0]
[null,27,"Начало уч. г.",{"$nulls":7},0]
[null,null,"Конец уч. г.",{"$nulls":7},0]
[null,28,"Начало уч. г.",{"$nulls":7},0]
[null,null,"Конец уч. г.",{"$nulls":7},0]
[null,29,"Начало уч. г.",{"$nulls":7},0]
[null,null,"Конец уч. г.",{"$nulls":7},0]
[null,30,"Начало уч. г.",{"$nulls":7},0]
[null,null,"Конец уч. г.",{"$nulls":7},0]
[null,31,"Начало уч. г.",{"$nulls":7},0]
[null,null,"Конец уч. г.",{"$nulls":7},0]
[]
[null,"Высокий","Начало уч. г.",{"$f":"(В*100)/31","v":{"$error":"#NAME?"}},{"$f":"(В*100)/31","v":{"$error":"#NAME?"}},{"$error":"#NAME?"},{"$error":"#NAME?"},{"$error":"#NAME?"},{"$error":"#NAME?"},{"$error":"#NAME?"},null,null,"В - количество высоких баллов"]
[null,null,"Конец уч. г.",{"$f":"(B*100)/31","v":{"$error":"#NAME?"}},{"$error":"#NAME?"},{"$error":"#NAME?"},{"$error":"#NAME?"},{"$error":"#NAME?"},{"$error":"#NAME?"},{"$error":"#NAME?"}]
[null,"Средний","Начало уч. г.",{"$f":"(С*100)/31","v":{"$error":"#NAME?"}},{"$f":"(С*100)/31","v":{"$error":"#NAME?"}},{"$error":"#NAME?"},{"$error":"#NAME?"},{"$error":"#NAME?"},{"$error":"#NAME?"},{"$error":"#NAME?"},null,null,"С - количество средних баллов"]
[null,null,"Конец уч. г.",{"$f":"(С*100)/31","v":{"$error":"#NAME?"}},{"$error":"#NAME?"},{"$error":"#NAME?"},{"$error":"#NAME?"},{"$error":"#NAME?"},{"$error":"#NAME?"},{"$error":"#NAME?"}]
[null,"Низкий","Начало уч. г.",{"$f":"(Н*100)/31","v":{"$error":"#NAME?"}},{"$f":"(Н*100)/31","v":{"$error":"#NAME?"}},{"$error":"#NAME?"},{"$error":"#NAME?"},{"$error":"#NAME?"},{"$error":"#NAME?"},{"$error":"#NAME?"},null,null,"Н - количество низких баллов"]
[null,null,"Конец уч. г.",{"$f":"(Н*100)/31","v":{"$error":"#NAME?"}},{"$error":"#NAME?"},{"$error":"#NAME?"},{"$error":"#NAME?"},{"$error":"#NAME?"},{"$error":"#NAME?"},{"$error":"#NAME?"}]
[]
[{"$nulls":3},"Высокий 3 балла",null,null,"Процент считаем так: количество детей (допустим) с низким уровнем 6*100/25(количество детей в группе)=24%"]
[{"$nulls":3},"Средний 2 балла"]
[{"$nulls":3},"Низкий 1 балл"]
[null,"СВОДНАЯ ТАБЛИЦА ОЦЕНКИ УРОВНЕЙ ЭФФЕКТИВНОСТИ ПЕДАГОГИЧЕСКИХ ВОЗДЕЙСТВИЙ "]
[null,"Образовательная область «Художественно-эстетическое развитие»"]
[null,"Направления","Период","Уровни (%)"]
[{"$nulls":3},"высокий","средний","низкий"]
[null,"Способен преобразовывать постройки в соответствии с заданием взрослого, проявляет интерес к конструктивной деятельности, в том числе к поделкам из бумаги","Начало уч. г."]
[null,null,"Конец уч. г."]
[null,"Правильно держит ножницы и умеет резать ими по прямой, по диагонали (квадрат и прямоугольник); вырезать круг из квадрата, овал-из прямоугольника, плавно срезать и закруглять углы","Начало уч. г."]
[null,null,"Конец уч. г."]
[null,"Изображает предметы путем создания отчетливых форм, подбора цвета, аккуратного закрашивания, приклеивания, использования разных материалов. Объединяет предметы в сюжеты","Начало уч. г."]
[null,null,"Конец уч. г."]
[null,"Знаком с элементами некоторых видов народного прикладного творчества, может использовать их в своей творческой деятельности","Начало уч. г."]
[null,null,"Конец уч. г."]
[null,"Имеет предпочтение в выборе муз. Произведения для слушания и пения. Выполняет движения, отвечающие характеру музыки, самостоятельно меняя их в соответствии с двухчастной формой музыкального произведения","Начало уч. г."]
[null,null,"Конец уч. г."]
[null,"Умеет выполнять танцевальные движения: пружинка, подскоки, движение парами по кругу, кружение по одному и в парах. Может выполнять движения с предметами","Начало уч.г."]
[null,null,"Конец уч.г."]
[null,"Узнает песни по мелодии. Может петь протяжно, четко произносить слова; вместе с другими детьми-начинать и заканчивать пение","Начало уч.г."]
[null,null,"Конец уч.г."]

{"sheet":"Физ развитие","index":4,"n_rows":96,"n_cols":11,"rows_kept":96,"merged":[[4,0,5,0],[4,1,5,1],[4,2,4,8],[7,0,8,0],[9,0,10,0],[11,0,12,0],[13,0,14,0],[15,0,16,0],[17,0,18,0],[19,0,20,0],[21,0,22,0],[23,0,24,0],[25,0,26,0],[27,0,28,0],[29,0,30,0],[31,0,32,0],[33,0,34,0],[35,0,36,0],[37,0,38,0],[39,0,40,0],[41,0,42,0],[43,0,44,0],[45,0,46,0],[47,0,48,0],[49,0,50,0],[51,0,52,0],[53,0,54,0],[55,0,56,0],[57,0,58,0],[59,0,60,0],[61,0,62,0],[63,0,64,0],[65,0,66,0],[67,0,68,0],[70,0,71,0],[72,0,73,0],[74,0,75,0],[82,0,83,0],[82,1,83,1],[82,2,82,4],[84,0,85,0],[86,0,87,0],[88,0,89,0],[90,0,91,0],[92,0,93,0],[94,0,95,0]]}
["КАРТА ОЦЕНКИ УРОВНЕЙ ЭФФЕКТИВНОСТИ ПЕДАГОГИЧЕСКИХ ВОЗДЕЙСТВИЙ (по Афонькиной Ю.А. и Верещагиной Н.В.)"]
["Образовательная область «Физическое развитие»",{"$nulls":8},"Дата заполнения:"]
["Возрастная группа                1 средняя",{"$nulls":5},"Воспитатели:",null,null,"Начало учебного года"]
[{"$nulls":9},"Конец учебного года"]
["Ф. И. ребенка","Период","Критерии оценки уровней эффективности педагогических воздействий"]
[null,null," Знает о значении для здоровья утренней гимнастики, закаливания, соблюдения режима дня","Соблюдает правила личной гигиены, опрятности","Умеет самостоятельно одеваться и раздеваться, убирает одежду и обувь в шкафчик","Ловит мяч с расстояния. Метает мяч разными способами правой и левой руками, отбивает о пол","Строится по заданию взрослого в шеренгу, в колонну по одному, парами, в круг","Определяет положение предметов в пространстве, умеет двигаться в нужном направлении, находит правую и левую руки","Итоговый показатель по каждому ребенку (среднее значение)"]
[1,2,3,4,5,6,7,8,9]
[1,"Начало уч. г.",3,1,2,3,3,2,{"$f":"SUM(C8:H8)/6","v":{"v":2.3333333333333335,"d":"2"}}]
[null,"Конец уч. г.",{"$nulls":6},{"$f":"SUM(C9:H9)/6","v":0}]
[2,"Начало уч. г.",{"$nulls":6},0]
[null,"Конец уч. г.",{"$nulls":6},0]
[3,"Начало уч. г.",{"$nulls":6},0]
[null,"Конец уч. г.",{"$nulls":6},0]
[4,"Начало уч. г.",{"$nulls":6},0]
[null,"Конец уч. г.",{"$nulls":6},0]
[5,"Начало уч. г.",{"$nulls":6},0]
[null,"Конец уч. г.",{"$nulls":6},0]
[6,"Начало уч. г.",{"$nulls":6},0]
[null,"Конец уч. г.",{"$nulls":6},0]
[7,"Начало уч. г.",{"$nulls":6},0]
[null,"Конец уч. г.",{"$nulls":6},0]
[8,"Начало уч. г.",{"$nulls":6},0]
[null,"Конец уч. г.",{"$nulls":6},0]
[9,"Начало уч. г.",{"$nulls":6},0]
[null,"Конец уч. г.",{"$nulls":6},0]
[10,"Начало уч. г.",{"$nulls":6},0]
[null,"Конец уч. г.",{"$nulls":6},0]
[11,"Начало уч. г.",{"$nulls":6},0]
[null,"Конец уч. г.",{"$nulls":6},0]
[12,"Начало уч. г.",{"$nulls":6},0]
[null,"Конец уч. г.",{"$nulls":6},0]
[13,"Начало уч. г.",{"$nulls":6},0]
[null,"Конец уч. г.",{"$nulls":6},0]
[14,"Начало уч. г.",{"$nulls":6},0]
[null,"Конец уч. г.",{"$nulls":6},0]
[15,"Начало уч. г.",{"$nulls":6},0]
[null,"Конец уч. г.",{"$nulls":6},0]
[16,"Начало уч. г.",{"$nulls":6},0]
[null,"Конец уч. г.",{"$nulls":6},0]
[17,"Начало уч. г.",{"$nulls":6},0]
[null,"Конец уч. г.",{"$nulls":6},0]
[18,"Начало уч. г.",{"$nulls":6},0]
[null,"Конец уч. г.",{"$nulls":6},0]
[19,"Начало уч. г.",{"$nulls":6},0]
[null,"Конец уч. г.",{"$nulls":6},0]
[20,"Начало уч. г.",{"$nulls":6},0]
[null,"Конец уч. г.",{"$nulls":6},0]
[21,"Начало уч. г.",{"$nulls":6},0]
[null,"Конец уч. г.",{"$nulls":6},0]
[22,"Начало уч. г.",{"$nulls":6},0]
[null,"Конец уч. г.",{"$nulls":6},0]
[23,"Начало уч. г.",{"$nulls":6},0]
[null,"Конец уч. г.",{"$nulls":6},0]
[24,"Начало уч. г.",{"$nulls":6},0]
[null,"Конец уч. г.",{"$nulls":6},0]
[25,"Начало уч. г.",{"$nulls":6},0]
[null,"Конец уч. г.",{"$nulls":6},0]
[26,"Начало уч. г.",{"$nulls":6},0]
[null,"Конец уч. г.",{"$nulls":6},0]
[27,"Начало уч. г.",{"$nulls":6},0]
[null,"Конец уч. г.",{"$nulls":6},0]
[28,"Начало уч. г.",{"$nulls":6},0]
[null,"Конец уч. г.",{"$nulls":6},0]
[29,"Начало уч. г.",{"$nulls":6},0]
[null,"Конец уч. г.",{"$nulls":6},0]
[30,"Начало уч. г.",{"$nulls":6},0]
[null,"Конец уч. г.",{"$nulls":6},0]
[31,"Начало уч. г.",{"$nulls":6},0]
[null,"Конец уч. г.",{"$nulls":6},0]
[]
["Высокий ","Начало уч. г.",{"$f":"(В*100)/31","v":{"$error":"#NAME?"}},{"$f":"(В*100)/31","v":{"$error":"#NAME?"}},{"$error":"#NAME?"},{"$error":"#NAME?"},{"$error":"#NAME?"},{"$error":"#NAME?"},null,null,"В - количество высоких баллов"]
[null,"Конец уч. г.",{"$f":"(B*100)/31","v":{"$error":"#NAME?"}},{"$error":"#NAME?"},{"$error":"#NAME?"},{"$error":"#NAME?"},{"$error":"#NAME?"},{"$error":"#NAME?"}]
["Средний","Начало уч. г.",{"$f":"(С*100)/31","v":{"$error":"#NAME?"}},{"$f":"(С*100)/31","v":{"$error":"#NAME?"}},{"$error":"#NAME?"},{"$error":"#NAME?"},{"$error":"#NAME?"},{"$error":"#NAME?"},null,null,"С - количество средних баллов"]
[null,"Конец уч. г.",{"$f":"(С*100)/31","v":{"$error":"#NAME?"}},{"$error":"#NAME?"},{"$error":"#NAME?"},{"$error":"#NAME?"},{"$error":"#NAME?"},{"$error":"#NAME?"}]
["Низкий","Начало уч. г.",{"$f":"(Н*100)/31","v":{"$error":"#NAME?"}},{"$f":"(Н*100)/31","v":{"$error":"#NAME?"}},{"$error":"#NAME?"},{"$error":"#NAME?"},{"$error":"#NAME?"},{"$error":"#NAME?"},null,null,"Н - количество низких баллов"]
[null,"Конец уч. г.",{"$f":"(Н*100)/31","v":{"$error":"#NAME?"}},{"$error":"#NAME?"},{"$error":"#NAME?"},{"$error":"#NAME?"},{"$error":"#NAME?"},{"$error":"#NAME?"}]
[]
[null,null,"Высокий 3 балла",null,null,"Процент считаем так: количество детей (допустим) с низким уровнем 6*100/25(количество детей в группе)=24%"]
[null,null,"Средний 2 балла"]
[null,null,"Низкий 1 балл"]
["СВОДНАЯ ТАБЛИЦА ОЦЕНКИ УРОВНЕЙ ЭФФЕКТИВНОСТИ ПЕДАГОГИЧЕСКИХ ВОЗДЕЙСТВИЙ "]
["Образовательная область «Физическое развитие»"]
["Направления","Период","Уровни (%)"]
[null,null,"высокий","средний","низкий"]
[" Знает о значении для здоровья утренней гимнастики, закаливания, соблюдения режима дня","Начало уч. г."]
[null,"Конец уч. г."]
["Соблюдает правила личной гигиены, опрятности","Начало уч. г."]
[null,"Конец уч. г."]
["Умеет самостоятельно одеваться и раздеваться, убирает одежду и обувь в шкафчик","Начало уч. г."]
[null,"Конец уч. г."]
["Ловит мяч с расстояния. Метает мяч разными способами правой и левой руками, отбивает о пол","Начало уч. г."]
[null,"Конец уч. г."]
["Строится по заданию взрослого в шеренгу, в колонну по одному, парами, в круг","Начало уч. г."]
[null,"Конец уч. г."]
["Определяет положение предметов в пространстве, умеет двигаться в нужном направлении, находит правую и левую руки","Начало уч.г."]
[null,"Конец уч.г."]